bitfinex/quotes_SOLUSD_20220104
["timestamp","ask_amount","ask_price","bid_price","bid_amount"]
[1641325323351,7.6,168.43,168.32,22.53030227]
[1641325323548,7.6,168.43,168.32,22.79030227]
[1641325323847,7.6,168.43,168.32,23.29030227]
[1641325324248,7.1,168.43,168.32,23.29030227]
[1641325326350,7.1,168.43,168.32,47.65210227]
[1641325332464,7.6,168.43,168.32,47.65210227]
[1641325332960,7.1,168.43,168.32,47.65210227]
[1641325334162,7.1,168.43,168.34,2.60940467]
[1641325334469,7.1,168.43,168.34,3.36940467]
[1641325335463,24.8678,168.46,168.34,3.36940467]
[1641325336287,25.3678,168.46,168.34,3.36940467]
[1641325341299,24.8678,168.46,168.34,3.36940467]
[1641325341903,25.3678,168.46,168.34,3.36940467]
[1641325342099,24.8678,168.46,168.34,3.36940467]
[1641325342298,25.3678,168.46,168.34,3.36940467]
[1641325345400,25.3678,168.46,168.34,0.26]
[1641325345606,7.1,168.45,168.29,79.68630786]
[1641325345803,7.1,168.45,168.28,7.1]
[1641325346003,7.86,168.45,168.29,0.5]
[1641325346504,7.86,168.45,168.28,2.36486752]
[1641325346903,1.66812906,168.44,168.28,3.12486752]
[1641325347105,9.27364062,168.42,168.28,3.12486752]
[1641325347303,113.37164062,168.42,168.29,22.6329]
[1641325347503,114.13164062,168.42,168.29,22.6329]
[1641325347703,114.13164062,168.42,168.24,92.7]
[1641325348104,3.11663692,168.41,168.23,23.106]
[1641325348308,31.0861,168.4,168.23,23.106]
[1641325348507,31.3461,168.4,168.23,23.106]
[1641325348808,40.7629,168.4,168.24,2.54155702]
[1641325349008,40.7629,168.4,168.24,2.80155702]
[1641325349207,1.66812906,168.38,168.24,2.80155702]
[1641325349406,7.1,168.37,168.24,2.80155702]
[1641325349706,7.36,168.37,168.24,2.80155702]
[1641325350006,7.86,168.37,168.24,2.80155702]
[1641325351006,7.86,168.37,168.24,2.54155702]
[1641325351410,7.1,168.37,168.24,2.54155702]
[1641325351607,7.1,168.37,168.24,4.49006488]
[1641325351807,1.66812906,168.39,168.24,11.59006488]
[1641325352007,111.895,168.52,168.24,16.92206488]
[1641325352008,1.66812906,168.41,168.24,16.92206488]
[1641325352210,1.66812906,168.41,168.25,41.33193034]
[1641325352408,1.66812906,168.41,168.26,7.1]
[1641325352610,1.66812906,168.41,168.27,26.48825325]
[1641325352811,1.66812906,168.46,168.29,27.71762578]
[1641325353008,1.66812906,168.46,168.3,30.5179]
[1641325353209,2.16812906,168.46,168.31,2.55571736]
[1641325353409,2.16812906,168.46,168.31,11.60422522]
[1641325353708,2.42812906,168.46,168.31,11.86422522]
[1641325353911,0.76,168.46,168.31,10.41571736]
[1641325354409,25.70362906,168.47,168.31,10.41571736]
[1641325354633,1.66812906,168.46,168.31,10.41571736]
[1641325354833,2.16812906,168.46,168.31,10.41571736]
[1641325355240,2.16812906,168.46,168.32,23.8886]
[1641325355435,0.5,168.46,168.32,24.3886]
[1641325355637,0.5,168.46,168.32,24.6486]
[1641325355835,25.44362906,168.47,168.32,24.6486]
[1641325356044,32.54362906,168.47,168.31,7.1]
[1641325356236,32.54362906,168.47,168.29,52.74853364]
[1641325356237,32.80362906,168.47,168.29,51.30002578]
[1641325356438,1.66812906,168.45,168.29,27.71762578]
[1641325356635,7.1,168.44,168.29,27.71762578]
[1641325356836,1.66812906,168.42,168.29,27.71762578]
[1641325357338,2.42812906,168.42,168.29,27.71762578]
[1641325357535,0.5,168.42,168.29,27.97762578]
[1641325357939,12.89968802,168.41,168.29,27.97762578]
[1641325358440,12.89968802,168.41,168.28,2.88277542]
[1641325358637,13.65968802,168.41,168.28,0.5]
[1641325358940,20.75968802,168.41,168.24,7.1]
[1641325359145,22.42781708,168.41,168.24,7.1]
[1641325359338,22.42781708,168.41,168.25,22.42692845]
[1641325359738,22.42781708,168.41,168.25,25.42579511]
[1641325360139,22.42781708,168.41,168.25,25.68579511]
[1641325360340,1.66812906,168.39,168.25,49.21639511]
[1641325360541,8.76812906,168.39,168.25,49.21639511]
[1641325360743,9.52812906,168.39,168.25,26.78946666]
[1641325360943,7.86,168.39,168.25,26.78946666]
[1641325361747,9.52812906,168.39,168.25,51.88561661]
[1641325362241,9.52812906,168.39,168.25,51.38561661]
[1641325365946,9.52812906,168.39,168.25,26.28946666]
[1641325366846,1.66812906,168.38,168.25,26.28946666]
[1641325367046,7.1,168.37,168.25,26.28946666]
[1641325367448,7.86,168.37,168.25,26.28946666]
[1641325367845,7.86,168.37,168.25,26.02946666]
[1641325368448,9.52812906,168.37,168.25,26.02946666]
[1641325368746,9.52812906,168.37,168.25,23.5306]
[1641325369047,7.86,168.37,168.25,23.7906]
[1641325369445,7.86,168.37,168.21,72.2071]
[1641325369647,14.307,168.37,168.22,23.0619]
[1641325369846,14.307,168.37,168.23,2.15051446]
[1641325370657,1.66812906,168.36,168.23,2.15051446]
[1641325370849,81.83772906,168.36,168.23,2.41051446]
[1641325371048,82.09772906,168.36,168.23,2.41051446]
[1641325375153,80.4296,168.36,168.23,2.41051446]
[1641325375561,80.1696,168.36,168.23,2.41051446]
[1641325375753,80.1696,168.36,168.23,27.72901446]
[1641325376353,79.6696,168.36,168.23,27.72901446]
[1641325376557,79.6696,168.36,168.24,7.1]
[1641325376956,79.6696,168.36,168.24,7.86]
[1641325377152,1.66812906,168.38,168.24,7.86]
[1641325377353,1.66812906,168.38,168.26,28.59241358]
[1641325377555,1.66812906,168.38,168.27,31.3691]
[1641325377957,1.66812906,168.38,168.27,32.1291]
[1641325378255,1.66812906,168.42,168.29,2.55182238]
[1641325378455,1.66812906,168.42,168.29,10.15182238]
[1641325378658,1.66812906,168.42,168.29,11.86033024]
[1641325379058,1.66812906,168.42,168.29,35.78943024]
[1641325379256,1.66812906,168.42,168.29,34.34092238]
[1641325379459,1.66812906,168.44,168.29,34.34092238]
[1641325381461,78.58852906,168.44,168.29,35.78943024]
[1641325381860,1.66812906,168.44,168.29,35.78943024]
[1641325382064,1.66812906,168.46,168.29,35.78943024]
[1641325382461,1.66812906,168.46,168.3,10.07585492]
[1641325382661,1.66812906,168.49,168.31,7.1]
[1641325382863,1.66812906,168.49,168.32,102.42074303]
[1641325383063,1.66812906,168.49,168.33,36.6062569]
[1641325383266,1.66812906,168.49,168.34,24.4803]
[1641325383462,1.66812906,168.49,168.35,10.14689081]
[1641325383666,1.66812906,168.49,168.35,11.59539867]
[1641325383863,76.7211,168.51,168.35,12.35539867]
[1641325384062,76.7211,168.51,168.36,1.44850786]
[1641325384262,1.66812906,168.52,168.37,7.1]
[1641325384464,1.66812906,168.53,168.38,27.28197921]
[1641325384667,1.66812906,168.53,168.39,7.1]
[1641325384863,1.66812906,168.53,168.39,9.04850786]
[1641325385064,1.66812906,168.53,168.4,27.49343046]
[1641325385262,1.66812906,168.53,168.41,7.1]
[1641325385465,1.66812906,168.53,168.42,2.22519226]
[1641325385664,1.66812906,168.56,168.43,7.1]
[1641325385963,1.66812906,168.56,168.43,7.86]
[1641325386466,1.66812906,168.57,168.43,7.86]
[1641325386964,1.66812906,168.57,168.43,9.30850786]
[1641325387366,5.5436647,168.6,168.43,9.30850786]
[1641325387367,1.66812906,168.56,168.43,9.30850786]
[1641325387764,1.66812906,168.56,168.43,68.46850786]
[1641325387963,3.8783677,168.6,168.43,68.46850786]
[1641325388395,3.8783677,168.6,168.43,77.36860786]
[1641325388789,2.21023864,168.6,168.43,77.36860786]
[1641325388988,2.21023864,168.6,168.43,68.46850786]
[1641325389793,2.21023864,168.6,168.43,77.36840786]
[1641325390894,2.21023864,168.6,168.43,68.46850786]
[1641325391092,2.21023864,168.6,168.43,19.12436278]
[1641325391291,2.21023864,168.6,168.43,9.04850786]
[1641325392094,3.8783677,168.6,168.43,9.04850786]
[1641325392396,3.8783677,168.6,168.43,17.94870786]
[1641325392801,2.21023864,168.6,168.43,18.20870786]
[1641325394796,2.21023864,168.6,168.44,59.16]
[1641325395000,2.21023864,168.6,168.46,2.77111907]
[1641325395198,2.21023864,168.6,168.47,7.1]
[1641325395398,2.21023864,168.6,168.47,9.04850786]
[1641325395598,1.66812906,168.65,168.47,68.46850786]
[1641325395797,1.66812906,168.65,168.49,59.16]
[1641325396095,2.16812906,168.65,168.5,7.1]
[1641325396297,2.16812906,168.65,168.5,8.54850786]
[1641325396496,1.86771554,168.64,168.51,4.50379648]
[1641325396698,1.86771554,168.64,168.52,7.1]
[1641325396896,1.86771554,168.64,168.52,7.6]
[1641325397600,3.3162234,168.64,168.52,0.5]
[1641325397795,3.8162234,168.64,168.51,3.05528862]
[1641325397996,4.0762234,168.64,168.51,3.05528862]
[1641325398399,7.1,168.63,168.51,3.05528862]
[1641325398598,7.1,168.63,168.47,7.1]
[1641325398801,1.44850786,168.62,168.43,7.1]
[1641325398998,7.1,168.61,168.43,7.1]
[1641325399198,74.0268,168.6,168.43,7.1]
[1641325399398,7.1,168.59,168.43,7.1]
[1641325399598,6.97370295,168.58,168.44,30.94102994]
[1641325399798,1.66812906,168.57,168.44,30.94102994]
[1641325400001,1.66812906,168.57,168.44,31.70102994]
[1641325400303,1.07636413,168.58,168.44,38.80102994]
[1641325400304,0.57636413,168.58,168.44,38.80102994]
[1641325401704,1.44850786,168.57,168.44,0.76]
[1641325401903,1.94850786,168.57,168.44,0.26]
[1641325402106,1.94850786,168.57,168.41,7.86]
[1641325402305,1.44850786,168.56,168.41,7.86]
[1641325402606,1.44850786,168.56,168.42,28.62891638]
[1641325402809,1.86771554,168.55,168.42,31.63055392]
[1641325403007,1.86771554,168.55,168.42,32.39055392]
[1641325405810,1.86771554,168.55,168.42,33.83906178]
[1641325406814,2.36771554,168.55,168.42,33.83906178]
[1641325407815,2.36771554,168.55,168.42,32.39055392]
[1641325409416,2.36771554,168.55,168.42,33.83906178]
[1641325410218,2.36771554,168.55,168.42,32.39055392]
[1641325411424,2.36771554,168.55,168.42,32.13055392]
[1641325411821,3.8162234,168.55,168.39,56.4244]
[1641325412020,4.0762234,168.55,168.39,56.4244]
[1641325412221,7.1,168.54,168.34,7.1]
[1641325412422,30.9141,168.54,168.34,7.1]
[1641325412623,1.44850786,168.53,168.34,7.1]
[1641325412822,10.34122868,168.51,168.35,30.74907077]
[1641325413025,83.35862868,168.51,168.35,30.74907077]
[1641325413223,83.85862868,168.51,168.35,31.24907077]
[1641325413424,84.11862868,168.51,168.35,31.50907077]
[1641325413625,84.11862868,168.51,168.36,24.1402]
[1641325413823,84.11862868,168.51,168.36,24.6402]
[1641325414023,84.11862868,168.51,168.36,24.9002]
[1641325414843,84.11862868,168.51,168.35,30.74907077]
[1641325414844,7.1,168.5,168.35,2.36720153]
[1641325415143,0.57636413,168.49,168.35,2.36720153]
[1641325415344,7.1,168.48,168.35,2.36720153]
[1641325415546,69.0,168.47,168.29,1.44850786]
[1641325415745,7.1,168.46,168.26,29.45966293]
[1641325415943,16.86457456,168.46,168.26,29.45966293]
[1641325416143,17.2626701,168.45,168.26,29.45966293]
[1641325416443,25.61305454,168.43,168.26,29.45966293]
[1641325416645,7.1,168.42,168.26,29.45966293]
[1641325416845,9.04850786,168.42,168.26,29.45966293]
[1641325417045,1.44850786,168.41,168.26,29.45966293]
[1641325417246,7.1,168.4,168.26,29.45966293]
[1641325417445,2.51688537,168.39,168.26,29.71966293]
[1641325417648,9.61688537,168.39,168.27,2.58319222]
[1641325417948,10.37688537,168.39,168.27,2.58319222]
[1641325418149,10.37688537,168.39,168.27,2.84319222]
[1641325418747,10.11688537,168.39,168.27,2.84319222]
[1641325419151,9.61688537,168.39,168.27,3.34319222]
[1641325419949,2.51688537,168.39,168.27,3.34319222]
[1641325422958,3.01688537,168.39,168.27,3.34319222]
[1641325424857,4.68501443,168.39,168.27,3.34319222]
[1641325425260,3.01688537,168.39,168.27,3.34319222]
[1641325426062,10.11688537,168.39,168.27,2.84319222]
[1641325427969,10.11688537,168.39,168.27,3.34319222]
[1641325428568,7.6,168.39,168.27,3.34319222]
[1641325429571,2.62525859,168.38,168.27,3.34319222]
[1641325429974,3.12525859,168.38,168.27,3.34319222]
[1641325431174,2.62525859,168.38,168.27,3.34319222]
[1641325434799,2.62525859,168.38,168.27,4.79170008]
[1641325439101,76.3202,168.42,168.27,11.89170008]
[1641325439303,76.3202,168.42,168.28,24.7164]
[1641325439501,76.3202,168.42,168.28,24.9764]
[1641325439701,76.3202,168.42,168.28,25.4764]
[1641325440102,2.87817811,168.41,168.28,25.4764]
[1641325442610,3.37817811,168.41,168.28,25.4764]
[1641325442810,4.82668597,168.41,168.28,24.9764]
[1641325443010,5.08668597,168.41,168.28,24.9764]
[1641325443413,5.08668597,168.41,168.28,0.26]
[1641325443611,5.08668597,168.41,168.27,2.84319222]
[1641325443811,5.08668597,168.41,168.27,3.08319222]
[1641325444211,4.82668597,168.41,168.27,3.08319222]
[1641325444411,3.37817811,168.41,168.27,4.53170008]
[1641325444611,2.87817811,168.41,168.27,11.63170008]
[1641325445214,2.87817811,168.41,168.28,24.1741]
[1641325445413,2.87817811,168.41,168.28,24.6741]
[1641325445615,2.87817811,168.41,168.28,24.9341]
[1641325447820,3.37817811,168.41,168.28,24.9341]
[1641325451726,3.37817811,168.41,168.28,0.26]
[1641325451925,5.08668597,168.41,168.28,0.26]
[1641325452157,7.1,168.4,168.26,24.3135]
[1641325452349,7.6,168.4,168.26,24.5735]
[1641325452549,9.30850786,168.4,168.26,24.5735]
[1641325452750,1.66812906,168.39,168.27,2.31074649]
[1641325452955,1.93310309,168.38,168.27,2.57074649]
[1641325453153,1.93310309,168.38,168.27,3.07074649]
[1641325453357,4.36123215,168.38,168.27,3.07074649]
[1641325453554,4.36123215,168.38,168.26,24.3135]
[1641325453758,7.1,168.37,168.2,31.2823]
[1641325453956,7.86,168.37,168.2,31.2823]
[1641325454153,7.86,168.37,168.2,24.1823]
[1641325454557,11.7893393,168.36,168.21,25.33075618]
[1641325454758,7.1,168.35,168.21,28.05778109]
[1641325454957,2.42454283,168.34,168.21,28.81778109]
[1641325455156,75.13194283,168.34,168.21,28.81778109]
[1641325455356,75.89194283,168.34,168.21,28.81778109]
[1641325455957,75.89194283,168.34,168.21,3.22702491]
[1641325456155,75.89194283,168.34,168.21,2.72702491]
[1641325456355,77.34045069,168.34,168.21,3.22702491]
[1641325456555,7.1,168.33,168.21,3.22702491]
[1641325456756,7.6,168.33,168.21,2.72702491]
[1641325456959,7.86,168.33,168.21,2.72702491]
[1641325457361,9.52812906,168.33,168.21,2.98702491]
[1641325457558,9.26812906,168.33,168.21,2.98702491]
[1641325457757,8.76812906,168.33,168.21,3.48702491]
[1641325458358,7.1,168.33,168.21,3.48702491]
[1641325460261,2.42454283,168.34,168.21,3.48702491]
[1641325460461,2.42454283,168.34,168.21,9.43402491]
[1641325461963,2.42454283,168.34,168.21,9.69402491]
[1641325462563,2.42454283,168.34,168.21,9.43402491]
[1641325463966,2.42454283,168.34,168.21,9.69402491]
[1641325465171,72.3816,168.36,168.21,9.69402491]
[1641325465370,72.3816,168.36,168.22,31.0582]
[1641325465569,72.3816,168.36,168.22,31.3182]
[1641325465770,72.3816,168.36,168.23,1.44850786]
[1641325465969,1.66812906,168.38,168.24,7.1]
[1641325466169,1.66812906,168.38,168.25,2.62274119]
[1641325466369,1.66812906,168.38,168.27,24.54545561]
[1641325466570,2.35162512,168.39,168.27,24.54545561]
[1641325466769,2.35162512,168.39,168.28,2.57770054]
[1641325466971,2.35162512,168.39,168.28,3.33770054]
[1641325467170,2.35162512,168.39,168.28,4.7862084]
[1641325467871,2.35162512,168.39,168.28,3.33770054]
[1641325468071,2.35162512,168.39,168.29,1.44850786]
[1641325468270,2.35162512,168.39,168.29,6.32550786]
[1641325468469,2.35162512,168.39,168.29,7.08550786]
[1641325469275,2.35162512,168.39,168.29,5.637]
[1641325471601,23.4017,168.43,168.29,5.637]
[1641325471803,23.4017,168.43,168.3,23.703]
[1641325472001,23.9017,168.43,168.3,23.963]
[1641325472202,23.9017,168.43,168.3,24.463]
[1641325472607,2.57877688,168.42,168.31,2.82333009]
[1641325473004,3.07877688,168.42,168.31,3.32333009]
[1641325474006,4.74690594,168.42,168.31,0.5]
[1641325474305,1.66812906,168.41,168.3,24.203]
[1641325474906,2.16812906,168.41,168.3,27.11498321]
[1641325475109,2.16812906,168.41,168.3,0.5]
[1641325475308,9.52812906,168.41,168.27,24.54545561]
[1641325475507,9.52812906,168.41,168.28,0.5]
[1641325475907,9.26812906,168.41,168.28,0.5]
[1641325476107,1.66812906,168.39,168.29,2.41288869]
[1641325476308,2.23250432,168.38,168.29,2.41288869]
[1641325476509,2.23250432,168.38,168.29,2.67288869]
[1641325477912,2.23250432,168.38,168.29,3.17288869]
[1641325478212,2.73250432,168.38,168.29,2.67288869]
[1641325478615,14.4628136,168.38,168.29,2.67288869]
[1641325479415,16.13094266,168.38,168.29,2.67288869]
[1641325480018,16.39094266,168.38,168.29,2.67288869]
[1641325480218,16.13094266,168.38,168.29,2.67288869]
[1641325480415,1.66812906,168.37,168.29,2.67288869]
[1641325480915,2.16812906,168.37,168.29,0.26]
[1641325481116,9.52812906,168.37,168.24,0.26]
[1641325481316,33.67982906,168.37,168.24,0.76]
[1641325481515,33.67982906,168.37,168.24,0.5]
[1641325481716,33.67982906,168.37,168.2,22.8409]
[1641325481916,33.67982906,168.37,168.23,25.84718898]
[1641325482116,1.66812906,168.36,168.24,2.18886133]
[1641325482316,2.57877688,168.35,168.24,2.18886133]
[1641325482517,7.1,168.34,168.24,2.44886133]
[1641325482919,7.6,168.34,168.24,2.44886133]
[1641325484018,9.52812906,168.34,168.24,2.44886133]
[1641325485020,9.26812906,168.34,168.24,2.44886133]
[1641325485223,9.26812906,168.34,168.24,2.94886133]
[1641325485420,1.66812906,168.33,168.24,2.44886133]
[1641325485820,1.66812906,168.33,168.24,2.94886133]
[1641325486022,4.24690594,168.35,168.24,4.39736919]
[1641325486422,4.24690594,168.35,168.24,2.94886133]
[1641325486822,2.57877688,168.35,168.24,27.82786133]
[1641325493756,2.57877688,168.35,168.24,29.27636919]
[1641325496861,47.0622,168.39,168.24,29.27636919]
[1641325497059,82.9006,168.4,168.25,7.1]
[1641325497060,77.46872906,168.4,168.25,7.1]
[1641325497262,1.66812906,168.4,168.26,22.9085]
[1641325497461,1.66812906,168.4,168.27,7.1]
[1641325497663,0.02,168.42,168.27,7.1]
[1641325497861,2.55672785,168.42,168.28,2.82166303]
[1641325498063,2.55672785,168.42,168.28,11.63017089]
[1641325498268,2.53672785,168.42,168.29,1.44850786]
[1641325498465,2.53672785,168.42,168.3,23.49015817]
[1641325498866,2.53672785,168.42,168.31,3.01334243]
[1641325499065,1.66812906,168.44,168.31,25.88434243]
[1641325499269,1.66812906,168.44,168.31,31.24734243]
[1641325499464,1.66812906,168.44,168.32,1.44850786]
[1641325499665,80.41202906,168.45,168.32,1.44850786]
[1641325499966,80.41202906,168.45,168.32,2.20850786]
[1641325500167,2.73946938,168.44,168.32,2.20850786]
[1641325501665,2.73946938,168.44,168.33,1.44850786]
[1641325501866,2.73946938,168.44,168.34,2.4336252]
[1641325502068,2.73946938,168.44,168.34,2.6936252]
[1641325502267,2.73946938,168.44,168.34,4.64213306]
[1641325502467,78.7439,168.45,168.34,4.64213306]
[1641325502868,1.66812906,168.48,168.34,4.64213306]
[1641325503069,1.66812906,168.48,168.35,31.5231]
[1641325503370,1.66812906,168.48,168.36,1.44850786]
[1641325503569,1.66812906,168.48,168.38,2.76500241]
[1641325503770,1.66812906,168.48,168.39,7.1]
[1641325503969,2.86097763,168.49,168.39,9.30850786]
[1641325504268,2.86097763,168.49,168.4,33.04463754]
[1641325504469,2.86097763,168.49,168.41,2.67242831]
[1641325504968,2.86097763,168.49,168.41,3.43242831]
[1641325510179,1.66812906,168.52,168.41,3.43242831]
[1641325510375,1.66812906,168.52,168.42,1.44850786]
[1641325510575,1.66812906,168.52,168.42,7.23150786]
[1641325510779,1.66812906,168.52,168.42,6.283]
[1641325511775,1.66812906,168.53,168.42,6.283]
[1641325512476,1.66812906,168.53,168.42,13.383]
[1641325512875,4.61084786,168.54,168.42,13.383]
[1641325513680,2.9427188,168.54,168.42,7.86]
[1641325514079,3.4427188,168.54,168.42,7.86]
[1641325514484,1.66812906,168.53,168.42,7.86]
[1641325515682,1.66812906,168.53,168.43,1.44850786]
[1641325515908,1.66812906,168.53,168.43,1.94850786]
[1641325516116,1.66812906,168.53,168.43,2.20850786]
[1641325516310,1.66812906,168.57,168.44,8.54850786]
[1641325516509,1.66812906,168.57,168.45,22.5445]
[1641325516708,1.66812906,168.57,168.47,23.76163969]
[1641325516910,1.66812906,168.57,168.47,46.85323969]
[1641325517110,1.66812906,168.57,168.48,7.1]
[1641325517410,1.66812906,168.57,168.49,2.74097505]
[1641325517812,1.66812906,168.58,168.49,3.50097505]
[1641325518410,2.75593596,168.59,168.49,3.50097505]
[1641325518411,4.42406502,168.59,168.49,3.50097505]
[1641325519415,4.42406502,168.59,168.49,0.76]
[1641325519712,1.66812906,168.57,168.49,0.76]
[1641325519913,1.66812906,168.57,168.47,24.52163969]
[1641325520114,1.66812906,168.57,168.47,24.26163969]
[1641325520314,1.66812906,168.56,168.43,7.1]
[1641325520515,3.7234743,168.56,168.46,0.5]
[1641325520714,4.2234743,168.56,168.46,0.5]
[1641325520915,3.7234743,168.56,168.46,0.5]
[1641325521118,3.7234743,168.56,168.44,2.99012103]
[1641325521119,1.66812906,168.54,168.44,3.49012103]
[1641325521322,2.75593596,168.53,168.44,3.49012103]
[1641325521518,2.75593596,168.53,168.45,28.8524086]
[1641325521919,1.66812906,168.54,168.45,29.1124086]
[1641325522917,2.55403563,168.53,168.45,29.6124086]
[1641325523517,0.00342606,168.58,168.54,1.66812906]
[1641325523720,5.0105833,168.64,168.6,30.84466223]
[1641325523917,5.0105833,168.64,168.6,38.44466223]
[1641325524119,5.0105833,168.64,168.6,38.70466223]
[1641325524319,73.5381,168.73,168.6,38.70466223]
[1641325524519,2.20652411,168.73,168.61,31.73536726]
[1641325524719,2.20652411,168.73,168.62,7.1]
[1641325524918,2.20652411,168.73,168.62,7.6]
[1641325525120,2.20652411,168.73,168.62,7.86]
[1641325525320,2.20652411,168.73,168.62,7.36]
[1641325525622,23.31443367,168.76,168.62,7.36]
[1641325525818,23.31443367,168.76,168.62,13.258]
[1641325525819,23.81443367,168.76,168.62,13.258]
[1641325526222,23.81443367,168.76,168.62,12.758]
[1641325526619,2.67188149,168.75,168.62,12.758]
[1641325526919,3.17188149,168.75,168.62,7.86]
[1641325527119,6.69437702,168.74,168.62,7.86]
[1641325527520,7.45437702,168.74,168.62,7.36]
[1641325528122,7.19437702,168.74,168.62,7.36]
[1641325528320,7.45437702,168.74,168.62,7.36]
[1641325528522,6.69437702,168.73,168.62,7.86]
[1641325528727,2.13939971,168.72,168.62,7.36]
[1641325529622,2.13939971,168.72,168.62,7.86]
[1641325530222,2.13939971,168.72,168.6,30.84466223]
[1641325530424,7.1,168.71,168.6,30.84466223]
[1641325530623,13.79503347,168.71,168.6,30.84466223]
[1641325530823,14.55503347,168.71,168.6,30.84466223]
[1641325531425,15.31173104,168.69,168.6,30.84466223]
[1641325531624,22.41173104,168.69,168.6,30.84466223]
[1641325531825,23.17173104,168.69,168.6,30.84466223]
[1641325533527,22.91173104,168.69,168.6,30.84466223]
[1641325533928,2.67188149,168.69,168.6,30.84466223]
[1641325534127,2.67188149,168.69,168.6,33.97246231]
[1641325535827,2.67188149,168.69,168.6,34.47246231]
[1641325536231,2.67188149,168.69,168.6,56.88040887]
[1641325538932,3.17188149,168.69,168.6,56.88040887]
[1641325539136,2.67188149,168.69,168.6,56.88040887]
[1641325539732,2.67188149,168.69,168.6,33.97246231]
[1641325539933,3.17188149,168.69,168.6,30.84466223]
[1641325540135,3.43188149,168.69,168.6,30.84466223]
[1641325540333,7.1,168.68,168.6,30.84466223]
[1641325540534,7.36,168.68,168.6,30.84466223]
[1641325540733,7.86,168.68,168.6,30.84466223]
[1641325542434,7.6,168.68,168.6,31.10466223]
[1641325542634,7.6,168.68,168.6,30.84466223]
[1641325542835,7.6,168.68,168.6,31.10466223]
[1641325543939,7.86,168.68,168.6,31.10466223]
[1641325544738,7.6,168.68,168.6,31.10466223]
[1641325545240,0.5,168.68,168.61,2.53306241]
[1641325545442,3.17188149,168.69,168.61,2.53306241]
[1641325545639,3.17188149,168.69,168.61,2.79306241]
[1641325545839,3.17188149,168.69,168.61,0.26]
[1641325546041,10.27188149,168.69,168.6,30.84466223]
[1641325546242,10.53188149,168.69,168.6,30.84466223]
[1641325547645,10.53188149,168.69,168.59,0.00041944]
[1641325548042,11.98038935,168.69,168.59,0.00041944]
[1641325548242,74.0,168.68,168.53,2.55403563]
[1641325548442,8.9054,168.64,168.53,2.55403563]
[1641325548642,6.91277046,168.62,168.53,2.55403563]
[1641325548846,7.1,168.61,168.53,2.55403563]
[1641325549143,7.36,168.61,168.53,2.55403563]
[1641325549343,7.86,168.61,168.53,2.55403563]
[1641325549574,2.71860841,168.59,168.53,2.55403563]
[1641325549745,7.1,168.58,168.53,2.55403563]
[1641325549945,7.6,168.58,168.53,2.55403563]
[1641325550151,7.86,168.58,168.53,2.55403563]
[1641325550446,14.55902125,168.58,168.53,2.55403563]
[1641325551048,7.86,168.58,168.53,2.55403563]
[1641325551648,2.15247678,168.56,168.53,2.55403563]
[1641325551847,2.65247678,168.56,168.53,2.55403563]
[1641325552050,6.06045808,168.55,168.53,2.55403563]
[1641325552447,6.82045808,168.55,168.53,2.55403563]
[1641325553051,31.34851982,168.55,168.53,2.55403563]
[1641325553249,31.34851982,168.55,168.39,130.9331]
[1641325553453,2.47306865,168.53,168.39,131.6931]
[1641325553954,3.23306865,168.53,168.39,131.6931]
[1641325554349,3.23306865,168.53,168.4,23.54455158]
[1641325554551,3.23306865,168.53,168.4,23.80455158]
[1641325554950,3.23306865,168.53,168.4,23.54455158]
[1641325555752,2.97306865,168.53,168.4,24.04455158]
[1641325555950,2.47306865,168.53,168.41,1.44850786]
[1641325556351,7.1,168.58,168.41,9.30850786]
[1641325556750,7.6,168.58,168.42,1.44850786]
[1641325556953,7.6,168.58,168.42,8.73350786]
[1641325557351,2.58891797,168.57,168.44,28.53730184]
[1641325557650,2.58891797,168.57,168.44,28.79730184]
[1641325557852,3.08891797,168.57,168.44,29.29730184]
[1641325558453,3.08891797,168.57,168.44,30.7458097]
[1641325558853,3.08891797,168.57,168.44,29.29730184]
[1641325560152,2.58891797,168.57,168.44,30.7458097]
[1641325560353,2.58891797,168.57,168.44,37.8458097]
[1641325562157,7.1,168.64,168.44,37.8458097]
[1641325562357,7.6,168.64,168.45,123.2717]
[1641325562557,7.1,168.64,168.45,124.0317]
[1641325562757,7.6,168.64,168.46,8.54850786]
[1641325562957,7.1,168.64,168.46,9.30850786]
[1641325563158,2.7211318,168.63,168.47,1.44850786]
[1641325563361,2.7211318,168.63,168.48,27.4623618]
[1641325563560,2.7211318,168.63,168.48,34.8223618]